[Event "Early-Titled-Tuesday-Blitz-March-05-2024"]
[Site "Chess.com"]
[Date "2024.03.05"]
[Round "7"]
[White "Herzog2012"]
[Black "AlexPapasimakopoulos"]
[Result "0-1"]
[WhiteElo "2509"]
[BlackElo "2748"]
[TimeControl "180+1"]
[EndTime "9:20:20 PST"]
[Termination "AlexPapasimakopoulos won on time"]

1. e4 {[%clk 0:03:00.9]} 1... e6 {[%clk 0:02:59.9]} 2. d4 {[%clk 0:02:59.7]}
2... d5 {[%clk 0:03:00.1]} 3. Nd2 {[%clk 0:02:59.8]} 3... Nf6 {[%clk 0:02:59.7]}
4. e5 {[%clk 0:02:59.8]} 4... Nfd7 {[%clk 0:03:00.4]} 5. Bd3 {[%clk 0:03:00.2]}
5... c5 {[%clk 0:03:01.1]} 6. c3 {[%clk 0:03:00.6]} 6... b5 {[%clk 0:03:01.8]}
7. Bxb5 {[%clk 0:02:53.3]} 7... Qb6 {[%clk 0:03:01.6]} 8. Bxd7+ {[%clk
0:02:40.1]} 8... Bxd7 {[%clk 0:03:02.5]} 9. Ne2 {[%clk 0:02:37.1]} 9... Bb5
{[%clk 0:03:01.8]} 10. dxc5 {[%clk 0:02:33.3]} 10... Bxc5 {[%clk 0:03:01.2]} 11.
O-O {[%clk 0:02:31.6]} 11... Nc6 {[%clk 0:03:01.3]} 12. Nb3 {[%clk 0:02:27.5]}
12... Nxe5 {[%clk 0:02:49.6]} 13. Nxc5 {[%clk 0:02:26.5]} 13... Qxc5 {[%clk
0:02:50.5]} 14. Be3 {[%clk 0:02:21.9]} 14... Qc4 {[%clk 0:02:44.8]} 15. Ng3
{[%clk 0:02:17.8]} 15... Qh4 {[%clk 0:02:37]} 16. Re1 {[%clk 0:01:58.4]} 16...
Ng4 {[%clk 0:02:36.5]} 17. h3 {[%clk 0:01:54.5]} 17... Nxe3 {[%clk 0:02:32]} 18.
Rxe3 {[%clk 0:01:55.4]} 18... O-O {[%clk 0:02:30.6]} 19. Nh5 {[%clk 0:01:49.5]}
19... g6 {[%clk 0:02:11.3]} 20. Ng3 {[%clk 0:01:42.1]} 20... Rfd8 {[%clk
0:02:05.8]} 21. Qf3 {[%clk 0:01:39.6]} 21... a5 {[%clk 0:02:00.7]} 22. Rd1
{[%clk 0:01:37.3]} 22... a4 {[%clk 0:01:57]} 23. Rd4 {[%clk 0:01:36.1]} 23...
Qh6 {[%clk 0:01:42.3]} 24. b3 {[%clk 0:01:20]} 24... axb3 {[%clk 0:01:41.8]} 25.
axb3 {[%clk 0:01:20.9]} 25... Bc6 {[%clk 0:01:26.4]} 26. c4 {[%clk 0:01:07.1]}
26... Qg7 {[%clk 0:01:21.6]} 27. Qf4 {[%clk 0:00:51.3]} 27... dxc4 {[%clk
0:01:05.1]} 28. Rxd8+ {[%clk 0:00:43.9]} 28... Rxd8 {[%clk 0:01:06]} 29. Nh5
{[%clk 0:00:26.1]} 29... Qa1+ {[%clk 0:00:59.7]} 30. Kh2 {[%clk 0:00:25.8]}
30... Qd4 {[%clk 0:00:38.2]} 31. bxc4 {[%clk 0:00:19.1]} 31... Qxf4+ {[%clk
0:00:37.7]} 32. Nxf4 {[%clk 0:00:19.4]} 32... Rd4 {[%clk 0:00:38.4]} 33. Nd3
{[%clk 0:00:17.6]} 33... Rxc4 {[%clk 0:00:38]} 34. Ne5 {[%clk 0:00:17.9]} 34...
Rc5 {[%clk 0:00:37]} 35. g4 {[%clk 0:00:13.7]} 35... g5 {[%clk 0:00:31.4]} 36.
Nxc6 {[%clk 0:00:08.4]} 36... Rxc6 {[%clk 0:00:31.6]} 37. Kg3 {[%clk 0:00:08.7]}
37... Kg7 {[%clk 0:00:31.6]} 38. h4 {[%clk 0:00:08.9]} 38... h6 {[%clk
0:00:31.4]} 39. f4 {[%clk 0:00:06.1]} 39... gxf4+ {[%clk 0:00:27.6]} 40. Kxf4
{[%clk 0:00:07]} 40... Rc4+ {[%clk 0:00:27.1]} 41. Kg3 {[%clk 0:00:07.4]} 41...
Kf6 {[%clk 0:00:27.5]} 42. Rf3+ {[%clk 0:00:07.8]} 42... Kg6 {[%clk 0:00:27.9]}
43. Re3 {[%clk 0:00:05]} 43... Ra4 {[%clk 0:00:27.1]} 44. Kh3 {[%clk 0:00:03.9]}
44... h5 {[%clk 0:00:23.2]} 45. g5 {[%clk 0:00:03.6]} 45... Rg4 {[%clk
0:00:16.9]} 46. Rf3 {[%clk 0:00:03.3]} 46... Kg7 {[%clk 0:00:16.8]} 47. Rf6
{[%clk 0:00:03.4]} 47... e5 {[%clk 0:00:15.7]} 48. Rf5 {[%clk 0:00:02.5]} 48...
e4 {[%clk 0:00:14.5]} 49. Re5 {[%clk 0:00:02.9]} 49... Kg6 {[%clk 0:00:13.6]}
50. Re8 {[%clk 0:00:03.1]} 50... Kf5 {[%clk 0:00:13.3]} 51. Rh8 {[%clk
0:00:02.5]} 51... e3 {[%clk 0:00:12.4]} 52. Re8 {[%clk 0:00:02.3]} 52... Re4
{[%clk 0:00:12.6]} 0-1

[Event "Early-Titled-Tuesday-Blitz-March-05-2024"]
[Site "Chess.com"]
[Date "2024.03.05"]
[Round "7"]
[White "Chessmissile07"]
[Black "ChessSwole"]
[Result "1-0"]
[WhiteElo "2917"]
[BlackElo "2719"]
[TimeControl "180+1"]
[EndTime "9:20:24 PST"]
[Termination "Chessmissile07 won on time"]

1. a3 {[%clk 0:03:00.9]} 1... a6 {[%clk 0:02:59.3]} 2. g3 {[%clk 0:03:00.4]}
2... g6 {[%clk 0:02:59]} 3. Bg2 {[%clk 0:03:00.7]} 3... Bg7 {[%clk 0:02:59.5]}
4. c4 {[%clk 0:03:00.9]} 4... e5 {[%clk 0:02:59.6]} 5. Nc3 {[%clk 0:03:00.6]}
5... Ne7 {[%clk 0:02:59.4]} 6. e4 {[%clk 0:02:59.8]} 6... O-O {[%clk 0:02:56.3]}
7. Nge2 {[%clk 0:03:00.2]} 7... c6 {[%clk 0:02:56.4]} 8. O-O {[%clk 0:02:59.8]}
8... b5 {[%clk 0:02:56]} 9. d3 {[%clk 0:02:56.7]} 9... d6 {[%clk 0:02:55.9]} 10.
b3 {[%clk 0:02:48.5]} 10... Nd7 {[%clk 0:02:55.1]} 11. Be3 {[%clk 0:02:45]}
11... Rb8 {[%clk 0:02:54.1]} 12. Rc1 {[%clk 0:02:42]} 12... Nf6 {[%clk
0:02:45.5]} 13. h3 {[%clk 0:02:40.3]} 13... d5 {[%clk 0:02:40.4]} 14. cxd5
{[%clk 0:02:38.7]} 14... cxd5 {[%clk 0:02:41]} 15. Bc5 {[%clk 0:02:38.6]} 15...
d4 {[%clk 0:02:36.3]} 16. Nd5 {[%clk 0:02:37.9]} 16... Nfxd5 {[%clk 0:02:29.8]}
17. exd5 {[%clk 0:02:38.1]} 17... Re8 {[%clk 0:02:27]} 18. d6 {[%clk 0:02:17]}
18... Nf5 {[%clk 0:02:26.9]} 19. Ba7 {[%clk 0:01:38.5]} 19... Rb7 {[%clk
0:02:09.9]} 20. Bxb7 {[%clk 0:01:36.8]} 20... Bxb7 {[%clk 0:02:10.8]} 21. Bc5
{[%clk 0:01:31.6]} 21... Nxd6 {[%clk 0:02:10.9]} 22. Bxd6 {[%clk 0:01:31]} 22...
Qxd6 {[%clk 0:02:10.9]} 23. b4 {[%clk 0:01:19.1]} 23... Qd5 {[%clk 0:02:09.8]}
24. f3 {[%clk 0:01:19.2]} 24... Bh6 {[%clk 0:02:10.2]} 25. Rc5 {[%clk
0:01:19.8]} 25... Qd7 {[%clk 0:02:09.6]} 26. Kh2 {[%clk 0:01:15.2]} 26... Bf8
{[%clk 0:02:09.1]} 27. Rc2 {[%clk 0:01:07.7]} 27... a5 {[%clk 0:02:08.5]} 28.
Qc1 {[%clk 0:00:49.5]} 28... axb4 {[%clk 0:02:01]} 29. Rc7 {[%clk 0:00:49.8]}
29... Qd5 {[%clk 0:02:00.8]} 30. axb4 {[%clk 0:00:50.2]} 30... Bxb4 {[%clk
0:01:59.5]} 31. Qg5 {[%clk 0:00:46.3]} 31... Bd6 {[%clk 0:01:39.4]} 32. Rd7
{[%clk 0:00:40.2]} 32... Bc6 {[%clk 0:01:37.6]} 33. Rd8 {[%clk 0:00:40.5]} 33...
Qa2 {[%clk 0:01:01.9]} 34. Rf2 {[%clk 0:00:35.5]} 34... Qe6 {[%clk 0:00:35.7]}
35. Ng1 {[%clk 0:00:27.5]} 35... Kg7 {[%clk 0:00:34.2]} 36. Rxe8 {[%clk
0:00:27.5]} 36... Bxe8 {[%clk 0:00:35.1]} 37. Qd8 {[%clk 0:00:27.5]} 37... Bd7
{[%clk 0:00:32.5]} 38. Qb6 {[%clk 0:00:25.5]} 38... e4 {[%clk 0:00:29.8]} 39.
Qxd4+ {[%clk 0:00:24]} 39... Kg8 {[%clk 0:00:26.3]} 40. Qxe4 {[%clk 0:00:22.4]}
40... Qf6 {[%clk 0:00:22]} 41. Ne2 {[%clk 0:00:16.7]} 41... b4 {[%clk
0:00:19.7]} 42. Qd4 {[%clk 0:00:14.9]} 42... Qe6 {[%clk 0:00:17.6]} 43. Nf4
{[%clk 0:00:14.6]} 43... Bxf4 {[%clk 0:00:17.6]} 44. Qxf4 {[%clk 0:00:14.7]}
44... Qxh3+ {[%clk 0:00:18.3]} 45. Kg1 {[%clk 0:00:14.5]} 45... b3 {[%clk
0:00:13.6]} 46. Rh2 {[%clk 0:00:12.7]} 46... Qe6 {[%clk 0:00:12.5]} 47. Qb8+
{[%clk 0:00:12.3]} 47... Kg7 {[%clk 0:00:11.9]} 48. Qb4 {[%clk 0:00:12.4]} 48...
Qe3+ {[%clk 0:00:11]} 49. Rf2 {[%clk 0:00:11.6]} 49... Qxd3 {[%clk 0:00:10.9]}
50. Rd2 {[%clk 0:00:10.8]} 50... Qb1+ {[%clk 0:00:09.5]} 51. Kg2 {[%clk
0:00:10.9]} 51... Be6 {[%clk 0:00:09.9]} 52. Qd4+ {[%clk 0:00:10.6]} 52... Kg8
{[%clk 0:00:10.5]} 53. Qf6 {[%clk 0:00:10.5]} 53... Bh3+ {[%clk 0:00:01.8]} 54.
Kh2 {[%clk 0:00:10.8]} 1-0

[Event "Early-Titled-Tuesday-Blitz-March-05-2024"]
[Site "Chess.com"]
[Date "2024.03.05"]
[Round "7"]
[White "MathiasWomacka"]
[Black "yonaltimur"]
[Result "1-0"]
[WhiteElo "2518"]
[BlackElo "2354"]
[TimeControl "180+1"]
[EndTime "9:20:25 PST"]
[Termination "MathiasWomacka won on time"]

1. e4 {[%clk 0:03:00.9]} 1... c5 {[%clk 0:03:00]} 2. Nf3 {[%clk 0:03:00.5]} 2...
d6 {[%clk 0:03:00.3]} 3. d4 {[%clk 0:02:57.2]} 3... cxd4 {[%clk 0:03:01.2]} 4.
Nxd4 {[%clk 0:02:56.1]} 4... Nf6 {[%clk 0:03:01.6]} 5. Nc3 {[%clk 0:02:56.4]}
5... a6 {[%clk 0:03:01.9]} 6. Be2 {[%clk 0:02:56.6]} 6... e5 {[%clk 0:03:01.9]}
7. Nb3 {[%clk 0:02:57.1]} 7... Be6 {[%clk 0:03:02.2]} 8. f4 {[%clk 0:02:54.9]}
8... Qc7 {[%clk 0:02:43.5]} 9. g4 {[%clk 0:02:55.3]} 9... exf4 {[%clk
0:02:22.5]} 10. g5 {[%clk 0:02:55.1]} 10... Nfd7 {[%clk 0:02:21.2]} 11. Bxf4
{[%clk 0:02:54.4]} 11... Ne5 {[%clk 0:02:20.1]} 12. Qd2 {[%clk 0:02:52.5]} 12...
Be7 {[%clk 0:02:20.2]} 13. O-O-O {[%clk 0:02:51.6]} 13... Nbd7 {[%clk
0:02:20.4]} 14. Nd4 {[%clk 0:02:48.8]} 14... O-O-O {[%clk 0:02:14.4]} 15. h4
{[%clk 0:02:39.2]} 15... g6 {[%clk 0:02:13.1]} 16. Kb1 {[%clk 0:02:27.3]} 16...
Kb8 {[%clk 0:01:45.9]} 17. Nd5 {[%clk 0:02:21.2]} 17... Bxd5 {[%clk 0:01:40.1]}
18. exd5 {[%clk 0:02:22.1]} 18... Rde8 {[%clk 0:01:38.6]} 19. Rh3 {[%clk
0:02:21]} 19... Bf8 {[%clk 0:01:32]} 20. Rb3 {[%clk 0:02:12.7]} 20... Ka8 {[%clk
0:01:28.2]} 21. Ra3 {[%clk 0:01:59.6]} 21... Nc5 {[%clk 0:01:25.1]} 22. Qc3
{[%clk 0:01:46.4]} 22... Qb6 {[%clk 0:01:16.9]} 23. Ka1 {[%clk 0:01:37]} 23...
Bg7 {[%clk 0:01:16.7]} 24. Nb3 {[%clk 0:01:29.4]} 24... Ne4 {[%clk 0:00:57.4]}
25. Qe1 {[%clk 0:01:16.6]} 25... Nd7 {[%clk 0:00:55]} 26. Bg4 {[%clk 0:01:03.1]}
26... Nf2 {[%clk 0:00:54]} 27. Bxd7 {[%clk 0:00:54.7]} 27... Rxe1 {[%clk
0:00:48.5]} 28. Rxe1 {[%clk 0:00:55.6]} 28... Qb4 {[%clk 0:00:44.1]} 29. Bd2
{[%clk 0:00:49.9]} 29... Qxa3 {[%clk 0:00:43.1]} 30. c3 {[%clk 0:00:47.9]} 30...
Qxb3 {[%clk 0:00:16.4]} 31. axb3 {[%clk 0:00:47.1]} 31... Nd3 {[%clk 0:00:17]}
32. Re7 {[%clk 0:00:45]} 32... Ne5 {[%clk 0:00:16.8]} 33. Bh3 {[%clk 0:00:42.8]}
33... Kb8 {[%clk 0:00:16.5]} 34. Bf4 {[%clk 0:00:40.8]} 34... Rf8 {[%clk
0:00:13.8]} 35. b4 {[%clk 0:00:37.9]} 35... Ka8 {[%clk 0:00:10.2]} 36. Ka2
{[%clk 0:00:37.4]} 36... Kb8 {[%clk 0:00:10.6]} 37. Kb3 {[%clk 0:00:37.3]} 37...
Bh8 {[%clk 0:00:10.7]} 38. Ka4 {[%clk 0:00:36.2]} 38... f6 {[%clk 0:00:11]} 39.
Rxh7 {[%clk 0:00:33.4]} 39... f5 {[%clk 0:00:07.2]} 40. b5 {[%clk 0:00:32.3]}
40... axb5+ {[%clk 0:00:04.1]} 41. Kxb5 {[%clk 0:00:32]} 41... Nf7 {[%clk
0:00:04.8]} 42. Kb6 {[%clk 0:00:28.9]} 42... Ka8 {[%clk 0:00:02.4]} 43. Bf1
{[%clk 0:00:26.7]} 43... Kb8 {[%clk 0:00:02.6]} 44. Bb5 {[%clk 0:00:25.5]} 44...
Be5 {[%clk 0:00:02.1]} 45. Bxe5 {[%clk 0:00:19.3]} 45... dxe5 {[%clk 0:00:03]}
46. Bd7 {[%clk 0:00:16.5]} 46... Nd6 {[%clk 0:00:02.6]} 47. Be6 {[%clk 0:00:16]}
47... f4 {[%clk 0:00:01.2]} 48. Kc5 {[%clk 0:00:13.3]} 48... f3 {[%clk
0:00:01.4]} 49. Kxd6 {[%clk 0:00:12.2]} 49... f2 {[%clk 0:00:01.3]} 50. Bh3
{[%clk 0:00:10.8]} 50... e4 {[%clk 0:00:01.7]} 51. Re7 {[%clk 0:00:08.9]} 51...
f1=Q {[%clk 0:00:01]} 52. Bxf1 {[%clk 0:00:07.7]} 52... Rxf1 {[%clk 0:00:01.9]}
53. Rxe4 {[%clk 0:00:06.1]} 1-0

[Event "Early-Titled-Tuesday-Blitz-March-05-2024"]
[Site "Chess.com"]
[Date "2024.03.05"]
[Round "7"]
[White "lamomiajunior"]
[Black "Muracle"]
[Result "0-1"]
[WhiteElo "2714"]
[BlackElo "2528"]
[TimeControl "180+1"]
[EndTime "9:20:29 PST"]
[Termination "Muracle won by resignation"]

1. d4 {[%clk 0:03:00.9]} 1... Nf6 {[%clk 0:02:52.9]} 2. c4 {[%clk 0:03:00]} 2...
e6 {[%clk 0:02:52.9]} 3. Nc3 {[%clk 0:02:59.9]} 3... Bb4 {[%clk 0:02:53.3]} 4.
f3 {[%clk 0:03:00.1]} 4... d5 {[%clk 0:02:52.3]} 5. a3 {[%clk 0:03:00.3]} 5...
Bxc3+ {[%clk 0:02:52.3]} 6. bxc3 {[%clk 0:03:01.2]} 6... O-O {[%clk 0:02:52.6]}
7. cxd5 {[%clk 0:03:01]} 7... exd5 {[%clk 0:02:53.5]} 8. e3 {[%clk 0:03:01.8]}
8... c5 {[%clk 0:02:53.7]} 9. Bd3 {[%clk 0:03:02.5]} 9... Nc6 {[%clk 0:02:53.8]}
10. Ne2 {[%clk 0:03:03.1]} 10... Qa5 {[%clk 0:02:49.3]} 11. O-O {[%clk 0:03:03]}
11... Re8 {[%clk 0:02:49.1]} 12. Bd2 {[%clk 0:03:03.2]} 12... Qc7 {[%clk
0:02:40.2]} 13. Ng3 {[%clk 0:03:01.8]} 13... g6 {[%clk 0:02:35.8]} 14. Ra2
{[%clk 0:02:56.7]} 14... Bd7 {[%clk 0:02:29.6]} 15. Bc1 {[%clk 0:02:56.6]} 15...
Re7 {[%clk 0:02:27.5]} 16. Re2 {[%clk 0:02:56.6]} 16... Rae8 {[%clk 0:02:28.1]}
17. Rfe1 {[%clk 0:02:52]} 17... h5 {[%clk 0:02:28.5]} 18. Bb2 {[%clk 0:02:49.9]}
18... h4 {[%clk 0:02:21.1]} 19. Nf1 {[%clk 0:02:49.9]} 19... h3 {[%clk
0:02:21.1]} 20. g4 {[%clk 0:02:49.3]} 20... Nxg4 {[%clk 0:01:54.8]} 21. fxg4
{[%clk 0:02:46.7]} 21... Bxg4 {[%clk 0:01:55.7]} 22. Qd2 {[%clk 0:02:45]} 22...
Bxe2 {[%clk 0:01:33.2]} 23. Qxe2 {[%clk 0:02:45.8]} 23... Qb6 {[%clk 0:01:26.8]}
24. Ba1 {[%clk 0:02:40.9]} 24... Qa5 {[%clk 0:01:18.6]} 25. Rd1 {[%clk
0:02:30.1]} 25... Qxa3 {[%clk 0:01:14.3]} 26. Qf3 {[%clk 0:02:28.2]} 26... cxd4
{[%clk 0:01:06]} 27. cxd4 {[%clk 0:02:21.6]} 27... Qa4 {[%clk 0:01:05]} 28. Qe2
{[%clk 0:02:08.7]} 28... Qa5 {[%clk 0:00:47.3]} 29. Qg4 {[%clk 0:02:01]} 29...
Qa4 {[%clk 0:00:45.5]} 30. Rc1 {[%clk 0:01:55.1]} 30... Ne5 {[%clk 0:00:44.1]}
31. Qe2 {[%clk 0:01:51.3]} 31... Nxd3 {[%clk 0:00:42.5]} 32. Qxd3 {[%clk
0:01:52.2]} 32... b5 {[%clk 0:00:34.7]} 33. Bb2 {[%clk 0:01:49.5]} 33... b4
{[%clk 0:00:29]} 34. Ra1 {[%clk 0:01:47.4]} 34... Qc6 {[%clk 0:00:29.3]} 35. Qe2
{[%clk 0:01:41.8]} 35... Qc4 {[%clk 0:00:27.1]} 36. Qg4 {[%clk 0:01:38.2]} 36...
Qc2 {[%clk 0:00:23.9]} 37. Bc1 {[%clk 0:01:38]} 37... b3 {[%clk 0:00:21.2]} 38.
Qxh3 {[%clk 0:01:28.9]} 38... b2 {[%clk 0:00:21.1]} 39. Bxb2 {[%clk 0:01:29.5]}
39... Qxb2 {[%clk 0:00:22]} 40. Ra6 {[%clk 0:01:28.5]} 40... Qe2 {[%clk
0:00:19.3]} 41. Ra3 {[%clk 0:01:23.5]} 41... Re4 {[%clk 0:00:16.7]} 42. Rxa7
{[%clk 0:01:15]} 42... Rg4+ {[%clk 0:00:13.9]} 43. Kh1 {[%clk 0:01:14]} 43...
Rc8 {[%clk 0:00:09.2]} 44. Ra1 {[%clk 0:01:08.6]} 44... Re8 {[%clk 0:00:03.1]}
45. Ra6 {[%clk 0:00:56.8]} 45... Rg5 {[%clk 0:00:03.2]} 46. Rf6 {[%clk
0:00:55.6]} 46... Rh5 {[%clk 0:00:03.4]} 47. Qg3 {[%clk 0:00:54.2]} 47... Re7
{[%clk 0:00:01.4]} 48. Rf2 {[%clk 0:00:54.4]} 48... Qd3 {[%clk 0:00:01.5]} 49.
Rf4 {[%clk 0:00:53.4]} 49... Qe2 {[%clk 0:00:01.6]} 50. Rf2 {[%clk 0:00:50.7]}
50... Qa6 {[%clk 0:00:02.5]} 51. Qb8+ {[%clk 0:00:45.8]} 51... Kg7 {[%clk
0:00:02.6]} 52. Qd8 {[%clk 0:00:46.1]} 52... Qe6 {[%clk 0:00:02.9]} 53. Ng3
{[%clk 0:00:44.7]} 53... Rh4 {[%clk 0:00:03.2]} 54. Rg2 {[%clk 0:00:43.8]} 54...
Rg4 {[%clk 0:00:01.5]} 55. h3 {[%clk 0:00:40.1]} 55... Rg5 {[%clk 0:00:01.9]}
56. h4 {[%clk 0:00:27.3]} 56... Qh3+ {[%clk 0:00:01.9]} 57. Rh2 {[%clk
0:00:27.7]} 57... Qxg3 {[%clk 0:00:02]} 58. hxg5 {[%clk 0:00:28.2]} 58... Qf3+
{[%clk 0:00:02.1]} 59. Kg1 {[%clk 0:00:25.6]} 59... Qxe3+ {[%clk 0:00:02.5]} 60.
Rf2 {[%clk 0:00:23.5]} 60... Qxg5+ {[%clk 0:00:02.4]} 61. Kf1 {[%clk 0:00:24]}
61... Re1+ {[%clk 0:00:02.8]} 62. Kxe1 {[%clk 0:00:24.4]} 62... Qxd8 {[%clk
0:00:03.7]} 0-1

[Event "Early-Titled-Tuesday-Blitz-March-05-2024"]
[Site "Chess.com"]
[Date "2024.03.05"]
[Round "7"]
[White "KhazhatulyAlikhan"]
[Black "GoValya"]
[Result "1-0"]
[WhiteElo "2433"]
[BlackElo "2233"]
[TimeControl "180+1"]
[EndTime "9:20:29 PST"]
[Termination "KhazhatulyAlikhan won on time"]

1. e4 {[%clk 0:02:59.4]} 1... e6 {[%clk 0:03:00.3]} 2. d4 {[%clk 0:02:59.5]}
2... d5 {[%clk 0:03:00.9]} 3. Nd2 {[%clk 0:02:59.4]} 3... Nf6 {[%clk 0:03:00.1]}
4. e5 {[%clk 0:03:00.1]} 4... Nfd7 {[%clk 0:03:00.7]} 5. Bd3 {[%clk 0:03:00.3]}
5... c5 {[%clk 0:03:01.2]} 6. c3 {[%clk 0:03:00.8]} 6... Nc6 {[%clk 0:03:00.5]}
7. Ne2 {[%clk 0:03:01.2]} 7... cxd4 {[%clk 0:02:59.7]} 8. cxd4 {[%clk
0:03:01.2]} 8... f6 {[%clk 0:03:00.1]} 9. exf6 {[%clk 0:03:00.2]} 9... Nxf6
{[%clk 0:03:00.3]} 10. O-O {[%clk 0:03:00.5]} 10... Bd6 {[%clk 0:03:00.5]} 11.
Nf3 {[%clk 0:03:00.8]} 11... Qc7 {[%clk 0:02:59]} 12. h3 {[%clk 0:03:01.1]}
12... O-O {[%clk 0:02:58.7]} 13. Be3 {[%clk 0:02:58.6]} 13... e5 {[%clk
0:02:36.4]} 14. dxe5 {[%clk 0:02:57.9]} 14... Nxe5 {[%clk 0:02:36.6]} 15. Nxe5
{[%clk 0:02:58.8]} 15... Bxe5 {[%clk 0:02:37.1]} 16. Nd4 {[%clk 0:02:37.4]}
16... Qf7 {[%clk 0:02:14.2]} 17. Qf3 {[%clk 0:02:34.1]} 17... Bd7 {[%clk
0:02:07.7]} 18. Rac1 {[%clk 0:02:33.5]} 18... Rac8 {[%clk 0:02:06.8]} 19. b3
{[%clk 0:02:28.2]} 19... a6 {[%clk 0:01:58.3]} 20. Rfd1 {[%clk 0:02:21.6]} 20...
Qe7 {[%clk 0:01:42.7]} 21. Nf5 {[%clk 0:02:11.3]} 21... Bxf5 {[%clk 0:01:38.2]}
22. Qxf5 {[%clk 0:02:12.2]} 22... Rxc1 {[%clk 0:01:29.1]} 23. Rxc1 {[%clk
0:02:09.9]} 23... g6 {[%clk 0:00:50.6]} 24. Qf3 {[%clk 0:01:59.9]} 24... Bd6
{[%clk 0:00:42.2]} 25. Bh6 {[%clk 0:01:47.1]} 25... Re8 {[%clk 0:00:23.8]} 26.
g3 {[%clk 0:01:39.3]} 26... Ne4 {[%clk 0:00:18.9]} 27. Bf1 {[%clk 0:01:21]}
27... Bc5 {[%clk 0:00:18]} 28. Rc2 {[%clk 0:00:54]} 28... Qe6 {[%clk 0:00:09.2]}
29. h4 {[%clk 0:00:48.2]} 29... Qb6 {[%clk 0:00:06]} 30. Kg2 {[%clk 0:00:38.6]}
30... Qd6 {[%clk 0:00:05.1]} 31. Bd3 {[%clk 0:00:35.5]} 31... Qe6 {[%clk
0:00:05.1]} 32. Re2 {[%clk 0:00:33.1]} 32... Bf8 {[%clk 0:00:03.1]} 33. Bf4
{[%clk 0:00:27]} 33... Bg7 {[%clk 0:00:02.9]} 34. Qe3 {[%clk 0:00:23.5]} 34...
Qf5 {[%clk 0:00:02.3]} 35. Qc1 {[%clk 0:00:21.8]} 35... Qf7 {[%clk 0:00:01.5]}
36. Qc2 {[%clk 0:00:15.7]} 36... Nf6 {[%clk 0:00:01.7]} 37. Rxe8+ {[%clk
0:00:14.7]} 37... Nxe8 {[%clk 0:00:02.6]} 38. Qc5 {[%clk 0:00:14.2]} 38... Nf6
{[%clk 0:00:02.6]} 39. Qc8+ {[%clk 0:00:12.3]} 39... Ne8 {[%clk 0:00:03.5]} 40.
Be2 {[%clk 0:00:12]} 40... Bf6 {[%clk 0:00:03.4]} 41. Bg4 {[%clk 0:00:12.2]}
41... Kg7 {[%clk 0:00:03.9]} 42. Be6 {[%clk 0:00:12.2]} 42... Qe7 {[%clk
0:00:04.4]} 43. Bd7 {[%clk 0:00:10.2]} 43... Nd6 {[%clk 0:00:04.3]} 44. Qc7
{[%clk 0:00:10.5]} 44... Ne8 {[%clk 0:00:03.8]} 45. Qxb7 {[%clk 0:00:10.2]}
45... Kf8 {[%clk 0:00:03.4]} 46. Qxd5 {[%clk 0:00:10.2]} 46... Kg7 {[%clk
0:00:02.7]} 47. Ba4 {[%clk 0:00:07.2]} 47... h5 {[%clk 0:00:02.6]} 48. Qc6
{[%clk 0:00:06.1]} 48... Kf7 {[%clk 0:00:01.5]} 49. b4 {[%clk 0:00:04.7]} 1-0

[Event "Early-Titled-Tuesday-Blitz-March-05-2024"]
[Site "Chess.com"]
[Date "2024.03.05"]
[Round "7"]
[White "FuenfgegenWilly"]
[Black "Lady_Nika"]
[Result "0-1"]
[WhiteElo "2441"]
[BlackElo "2570"]
[TimeControl "180+1"]
[EndTime "9:20:32 PST"]
[Termination "Lady_Nika won on time"]

1. e4 {[%clk 0:02:57]} 1... e6 {[%clk 0:02:28.4]} 2. d4 {[%clk 0:02:56.8]} 2...
d5 {[%clk 0:02:22.1]} 3. exd5 {[%clk 0:02:57.7]} 3... exd5 {[%clk 0:02:18.7]} 4.
Nf3 {[%clk 0:02:58.2]} 4... Nf6 {[%clk 0:02:18.8]} 5. Bd3 {[%clk 0:02:57.9]}
5... Be7 {[%clk 0:02:15.4]} 6. h3 {[%clk 0:02:57]} 6... O-O {[%clk 0:02:13.4]}
7. O-O {[%clk 0:02:57.4]} 7... c6 {[%clk 0:02:11.9]} 8. Bf4 {[%clk 0:02:57.9]}
8... Nbd7 {[%clk 0:02:10.1]} 9. Nbd2 {[%clk 0:02:58.5]} 9... Re8 {[%clk
0:02:08.2]} 10. c3 {[%clk 0:02:57.7]} 10... Nf8 {[%clk 0:02:08.5]} 11. Re1
{[%clk 0:02:56.4]} 11... Ng6 {[%clk 0:02:08.8]} 12. Bh2 {[%clk 0:02:56]} 12...
Bd7 {[%clk 0:02:00.5]} 13. Qc2 {[%clk 0:02:55.3]} 13... Qb6 {[%clk 0:01:59.4]}
14. Ne5 {[%clk 0:02:55.1]} 14... Nf8 {[%clk 0:01:47.1]} 15. Ndf3 {[%clk
0:02:50.6]} 15... h6 {[%clk 0:01:36.6]} 16. Re2 {[%clk 0:02:38.7]} 16... c5
{[%clk 0:01:31.8]} 17. dxc5 {[%clk 0:02:31]} 17... Bxc5 {[%clk 0:01:30.8]} 18.
Rae1 {[%clk 0:02:27.1]} 18... Be6 {[%clk 0:01:24.6]} 19. b4 {[%clk 0:02:22.5]}
19... Bd6 {[%clk 0:01:24.3]} 20. Nd4 {[%clk 0:02:21.4]} 20... Rac8 {[%clk
0:01:21.8]} 21. Qb3 {[%clk 0:02:00.3]} 21... a6 {[%clk 0:01:01.4]} 22. Bb1
{[%clk 0:01:42.5]} 22... Qc7 {[%clk 0:00:52.7]} 23. Re3 {[%clk 0:01:42.4]} 23...
Ne4 {[%clk 0:00:48.1]} 24. Nxe6 {[%clk 0:01:21.8]} 24... Rxe6 {[%clk 0:00:45.3]}
25. Bxe4 {[%clk 0:01:20.7]} 25... dxe4 {[%clk 0:00:44.5]} 26. Rxe4 {[%clk
0:01:16.2]} 26... Qxc3 {[%clk 0:00:43.9]} 27. Qxc3 {[%clk 0:00:36.2]} 27... Rxc3
{[%clk 0:00:43.6]} 28. Nf3 {[%clk 0:00:17.7]} 28... Bxh2+ {[%clk 0:00:42]} 29.
Kxh2 {[%clk 0:00:17.3]} 29... Rxe4 {[%clk 0:00:41.8]} 30. Rxe4 {[%clk
0:00:18.2]} 30... Rc2 {[%clk 0:00:41.8]} 31. Re7 {[%clk 0:00:14.1]} 31... b5
{[%clk 0:00:40.5]} 32. Kg3 {[%clk 0:00:11.4]} 32... Rxa2 {[%clk 0:00:40.3]} 33.
Ne5 {[%clk 0:00:12]} 33... f6 {[%clk 0:00:36.7]} 34. Nc6 {[%clk 0:00:10.3]}
34... Ng6 {[%clk 0:00:34.1]} 35. Ra7 {[%clk 0:00:08.2]} 35... Ra3+ {[%clk
0:00:30.9]} 36. f3 {[%clk 0:00:08.3]} 36... Ne5 {[%clk 0:00:30]} 37. Nxe5 {[%clk
0:00:08.2]} 37... fxe5 {[%clk 0:00:30]} 38. Kg4 {[%clk 0:00:08.8]} 38... g6
{[%clk 0:00:28.7]} 39. h4 {[%clk 0:00:08.9]} 39... Ra4 {[%clk 0:00:28.8]} 40.
Kg3 {[%clk 0:00:07]} 40... Rxb4 {[%clk 0:00:25.2]} 41. Rxa6 {[%clk 0:00:07.4]}
41... Kg7 {[%clk 0:00:25.5]} 42. Re6 {[%clk 0:00:07.8]} 42... e4 {[%clk
0:00:22]} 43. fxe4 {[%clk 0:00:06.5]} 43... Kf7 {[%clk 0:00:21.6]} 44. Rb6
{[%clk 0:00:06.1]} 44... Rb1 {[%clk 0:00:17.9]} 45. e5 {[%clk 0:00:06.4]} 45...
b4 {[%clk 0:00:18.2]} 46. Kg4 {[%clk 0:00:06.1]} 46... b3 {[%clk 0:00:18.3]} 47.
h5 {[%clk 0:00:05.9]} 47... gxh5+ {[%clk 0:00:17.7]} 48. Kxh5 {[%clk 0:00:06.8]}
48... b2 {[%clk 0:00:18.2]} 49. e6+ {[%clk 0:00:07.3]} 49... Ke7 {[%clk
0:00:18.4]} 50. Kg4 {[%clk 0:00:06.5]} 50... h5+ {[%clk 0:00:17.9]} 51. Kg3
{[%clk 0:00:06.1]} 51... h4+ {[%clk 0:00:18.2]} 52. Kg4 {[%clk 0:00:05.9]} 52...
Kf6 {[%clk 0:00:17.9]} 53. e7+ {[%clk 0:00:04.2]} 53... Kxe7 {[%clk 0:00:17.9]}
54. Rb8 {[%clk 0:00:04.4]} 54... Kd7 {[%clk 0:00:18.2]} 55. Rb3 {[%clk
0:00:04.1]} 55... Kc7 {[%clk 0:00:18.6]} 56. Rb4 {[%clk 0:00:04.4]} 56... Kc6
{[%clk 0:00:18.9]} 57. g3 {[%clk 0:00:03.9]} 57... hxg3 {[%clk 0:00:18.3]} 58.
Rb3 {[%clk 0:00:03.4]} 58... g2 {[%clk 0:00:18.3]} 59. Rc3+ {[%clk 0:00:02.6]}
59... Kd5 {[%clk 0:00:17.6]} 60. Rd3+ {[%clk 0:00:02.6]} 60... Ke4 {[%clk
0:00:17.8]} 0-1